[Event "*** Titled Tuesday Blitz"]
[Site "Chess.com"]
[Date "2020.12.01"]
[Round "7"]
[White "Kretov_Evgenij"]
[Black "fyall777"]
[Result "1/2-1/2"]
[WhiteElo "2484"]
[BlackElo "2302"]
[TimeControl "180+1"]
[EndTime "11:17:24 PST"]
[Termination "Game drawn - insufficient material"]

1. d4 {[%clk 0:03:00.9]} 1... Nf6 {[%clk 0:02:59.1]} 2. c4 {[%clk 0:03:01]} 2...
d6 {[%clk 0:02:59]} 3. Nc3 {[%clk 0:03:01.2]} 3... e5 {[%clk 0:02:59.3]} 4. Nf3
{[%clk 0:03:01.4]} 4... Nbd7 {[%clk 0:02:58.7]} 5. e4 {[%clk 0:03:01.6]} 5...
Be7 {[%clk 0:02:58.7]} 6. Be2 {[%clk 0:03:01.9]} 6... O-O {[%clk 0:02:58.7]} 7.
O-O {[%clk 0:03:02.1]} 7... exd4 {[%clk 0:02:59]} 8. Nxd4 {[%clk 0:03:01.9]}
8... Nc5 {[%clk 0:02:58.4]} 9. f3 {[%clk 0:03:01.8]} 9... a5 {[%clk 0:02:57.3]}
10. Be3 {[%clk 0:02:59.6]} 10... c6 {[%clk 0:02:55.7]} 11. Nc2 {[%clk
0:02:59.7]} 11... Nfd7 {[%clk 0:02:44.5]} 12. Qd2 {[%clk 0:02:58.9]} 12... Re8
{[%clk 0:02:22.6]} 13. Rfd1 {[%clk 0:02:56.6]} 13... Qc7 {[%clk 0:02:22.8]} 14.
Kh1 {[%clk 0:02:54.7]} 14... Ne5 {[%clk 0:02:07.7]} 15. Bf4 {[%clk 0:02:47.9]}
15... Bf8 {[%clk 0:01:55]} 16. Rac1 {[%clk 0:02:46.6]} 16... Qe7 {[%clk
0:01:50.6]} 17. Ne3 {[%clk 0:02:44]} 17... Qh4 {[%clk 0:01:46.5]} 18. Bg3 {[%clk
0:02:42.9]} 18... Qh6 {[%clk 0:01:41.6]} 19. f4 {[%clk 0:02:37.4]} 19... Ng6
{[%clk 0:01:39]} 20. Nf5 {[%clk 0:02:30.6]} 20... Bxf5 {[%clk 0:01:38]} 21. exf5
{[%clk 0:02:30.9]} 21... Nh4 {[%clk 0:01:31.8]} 22. Bg4 {[%clk 0:02:25.5]} 22...
Qf6 {[%clk 0:01:26.8]} 23. Qd4 {[%clk 0:02:24.9]} 23... Qxd4 {[%clk 0:01:13]}
24. Rxd4 {[%clk 0:02:24.4]} 24... Be7 {[%clk 0:01:13.3]} 25. Ne4 {[%clk
0:02:21.5]} 25... Nxe4 {[%clk 0:01:10.9]} 26. Rxe4 {[%clk 0:02:21.6]} 26... Bf6
{[%clk 0:00:53.3]} 27. Rce1 {[%clk 0:02:20.5]} 27... Rxe4 {[%clk 0:00:49.7]} 28.
Rxe4 {[%clk 0:02:20.6]} 28... h5 {[%clk 0:00:49.9]} 29. Bh3 {[%clk 0:02:16.4]}
29... Kf8 {[%clk 0:00:45.1]} 30. Kg1 {[%clk 0:02:10.9]} 30... Rd8 {[%clk
0:00:33.5]} 31. Be1 {[%clk 0:01:26.1]} 31... d5 {[%clk 0:00:33.6]} 32. Re2
{[%clk 0:01:12.4]} 32... dxc4 {[%clk 0:00:33.1]} 33. Bxa5 {[%clk 0:01:11.1]}
33... Rd5 {[%clk 0:00:33.2]} 34. Bb4+ {[%clk 0:01:10.8]} 34... c5 {[%clk
0:00:33]} 35. Ba3 {[%clk 0:01:06.9]} 35... Nxf5 {[%clk 0:00:32.7]} 36. g3 {[%clk
0:01:06.6]} 36... b5 {[%clk 0:00:31.2]} 37. b4 {[%clk 0:01:02.3]} 37... cxb3
{[%clk 0:00:29.5]} 38. axb3 {[%clk 0:01:02.5]} 38... b4 {[%clk 0:00:29.2]} 39.
Bb2 {[%clk 0:01:02.4]} 39... Bxb2 {[%clk 0:00:29.1]} 40. Rxb2 {[%clk 0:01:02.5]}
40... Rd1+ {[%clk 0:00:29.4]} 41. Kf2 {[%clk 0:01:02.2]} 41... Nd4 {[%clk
0:00:29.8]} 42. Bf1 {[%clk 0:01:01.4]} 42... Ke7 {[%clk 0:00:27.9]} 43. Bc4
{[%clk 0:01:01.3]} 43... f6 {[%clk 0:00:28.1]} 44. Ra2 {[%clk 0:01:01.3]} 44...
g5 {[%clk 0:00:26.6]} 45. fxg5 {[%clk 0:01:00.1]} 45... fxg5 {[%clk 0:00:26.8]}
46. h4 {[%clk 0:00:58.5]} 46... g4 {[%clk 0:00:26.3]} 47. Ra7+ {[%clk
0:00:57.6]} 47... Kd6 {[%clk 0:00:25.3]} 48. Rh7 {[%clk 0:00:57.5]} 48... Rd2+
{[%clk 0:00:22.8]} 49. Ke3 {[%clk 0:00:57.2]} 49... Rb2 {[%clk 0:00:21.7]} 50.
Rxh5 {[%clk 0:00:56.5]} 50... Nxb3 {[%clk 0:00:20.4]} 51. Rh6+ {[%clk
0:00:52.3]} 51... Kc7 {[%clk 0:00:18.2]} 52. h5 {[%clk 0:00:52.1]} 52... Nd4
{[%clk 0:00:18]} 53. Rf6 {[%clk 0:00:48]} 53... Rh2 {[%clk 0:00:17]} 54. h6
{[%clk 0:00:48.1]} 54... b3 {[%clk 0:00:17.4]} 55. Bd3 {[%clk 0:00:46.7]} 55...
b2 {[%clk 0:00:17.1]} 56. h7 {[%clk 0:00:46.7]} 56... c4 {[%clk 0:00:17.5]} 57.
Bg6 {[%clk 0:00:45.2]} 57... Nf3 {[%clk 0:00:15.2]} 58. Rf8 {[%clk 0:00:43.5]}
58... Ne5 {[%clk 0:00:14.2]} 59. Be4 {[%clk 0:00:41.6]} 59... Nd3 {[%clk
0:00:10.6]} 60. Rf1 {[%clk 0:00:39.7]} 60... Nc1 {[%clk 0:00:07.6]} 61. Kd4
{[%clk 0:00:33.5]} 61... Ne2+ {[%clk 0:00:06.2]} 62. Kxc4 {[%clk 0:00:32.6]}
62... Nxg3 {[%clk 0:00:06.2]} 63. Rf7+ {[%clk 0:00:32.8]} 63... Kd6 {[%clk
0:00:06.5]} 64. Bg6 {[%clk 0:00:32.7]} 64... Ne2 {[%clk 0:00:05.9]} 65. Rf8
{[%clk 0:00:32.8]} 65... g3 {[%clk 0:00:05.1]} 66. h8=Q {[%clk 0:00:27]} 66...
Rxh8 {[%clk 0:00:04.9]} 67. Rxh8 {[%clk 0:00:27.1]} 67... g2 {[%clk 0:00:05.3]}
68. Rd8+ {[%clk 0:00:27.2]} 68... Ke5 {[%clk 0:00:05.1]} 69. Re8+ {[%clk
0:00:26.5]} 69... Kf4 {[%clk 0:00:04.4]} 70. Rxe2 {[%clk 0:00:26.4]} 70... g1=Q
{[%clk 0:00:04.5]} 71. Bc2 {[%clk 0:00:25.8]} 71... Qf1 {[%clk 0:00:03.8]} 72.
Kd3 {[%clk 0:00:24.6]} 72... Qxe2+ {[%clk 0:00:03.9]} 73. Kxe2 {[%clk
0:00:24.7]} 73... b1=Q {[%clk 0:00:02.5]} 74. Bxb1 {[%clk 0:00:24.8]} 1/2-1/2

[Event "*** Titled Tuesday Blitz"]
[Site "Chess.com"]
[Date "2020.12.01"]
[Round "7"]
[White "Ajedrez_con_German"]
[Black "garfio2017"]
[Result "1-0"]
[WhiteElo "2463"]
[BlackElo "2290"]
[TimeControl "180+1"]
[EndTime "11:17:29 PST"]
[Termination "Ajedrez_con_German won by resignation"]

1. Nf3 {[%clk 0:02:59.7]} 1... c5 {[%clk 0:02:51.5]} 2. c4 {[%clk 0:02:59]} 2...
Nc6 {[%clk 0:02:51.7]} 3. d4 {[%clk 0:02:58.3]} 3... cxd4 {[%clk 0:02:51.1]} 4.
Nxd4 {[%clk 0:02:58]} 4... Nf6 {[%clk 0:02:50.2]} 5. Nc3 {[%clk 0:02:57.3]} 5...
g6 {[%clk 0:02:48.9]} 6. g3 {[%clk 0:02:55.7]} 6... Bg7 {[%clk 0:02:49]} 7. Bg2
{[%clk 0:02:55.7]} 7... O-O {[%clk 0:02:49.5]} 8. O-O {[%clk 0:02:55.7]} 8... e5
{[%clk 0:02:44.7]} 9. Nc2 {[%clk 0:02:52.5]} 9... d6 {[%clk 0:02:41.4]} 10. Ne3
{[%clk 0:02:42.7]} 10... Be6 {[%clk 0:02:37.5]} 11. Ned5 {[%clk 0:02:42.6]}
11... Bxd5 {[%clk 0:02:35.7]} 12. Nxd5 {[%clk 0:02:41.6]} 12... Nxd5 {[%clk
0:02:35.2]} 13. Bxd5 {[%clk 0:02:39.3]} 13... Rb8 {[%clk 0:02:34.2]} 14. Bd2
{[%clk 0:02:32.7]} 14... Ne7 {[%clk 0:02:32.9]} 15. Bc3 {[%clk 0:02:30.4]} 15...
Nxd5 {[%clk 0:02:28.6]} 16. Qxd5 {[%clk 0:02:30.1]} 16... Qb6 {[%clk 0:02:28.6]}
17. Rad1 {[%clk 0:02:26.4]} 17... Rbc8 {[%clk 0:02:22.9]} 18. Qxd6 {[%clk
0:02:09]} 18... Qxd6 {[%clk 0:02:21.4]} 19. Rxd6 {[%clk 0:02:09.9]} 19... Rxc4
{[%clk 0:02:21.5]} 20. Rd7 {[%clk 0:02:10]} 20... Rb8 {[%clk 0:02:12.1]} 21.
Rfd1 {[%clk 0:02:05]} 21... e4 {[%clk 0:02:08.5]} 22. Rd8+ {[%clk 0:01:59.3]}
22... Rxd8 {[%clk 0:02:06.2]} 23. Rxd8+ {[%clk 0:02:00.2]} 23... Bf8 {[%clk
0:02:06.5]} 24. Rd7 {[%clk 0:01:53.9]} 24... b5 {[%clk 0:01:57.1]} 25. Rxa7
{[%clk 0:01:46.7]} 25... b4 {[%clk 0:01:56.6]} 26. Bf6 {[%clk 0:01:37.4]} 26...
Rc8 {[%clk 0:01:45.4]} 27. e3 {[%clk 0:01:27]} 27... h6 {[%clk 0:01:44.9]} 28.
h4 {[%clk 0:01:15.4]} 28... Rc6 {[%clk 0:01:36]} 29. Bd4 {[%clk 0:01:11.6]}
29... g5 {[%clk 0:01:24.8]} 30. hxg5 {[%clk 0:01:11.2]} 30... hxg5 {[%clk
0:01:25.7]} 31. g4 {[%clk 0:01:11.3]} 31... Rc8 {[%clk 0:01:12.5]} 32. Kg2
{[%clk 0:01:10.5]} 32... Re8 {[%clk 0:01:01]} 33. Ra5 {[%clk 0:01:02.6]} 33...
Be7 {[%clk 0:00:52.4]} 34. Re5 {[%clk 0:00:50.5]} 34... Kf8 {[%clk 0:00:51]} 35.
Rxe4 {[%clk 0:00:47.6]} 35... Rc8 {[%clk 0:00:46]} 36. Re5 {[%clk 0:00:33.2]}
36... Rc2 {[%clk 0:00:39.3]} 37. Rb5 {[%clk 0:00:29.4]} 37... f6 {[%clk
0:00:35.9]} 38. Rb8+ {[%clk 0:00:28.1]} 38... Kf7 {[%clk 0:00:35.7]} 39. Rb7
{[%clk 0:00:28]} 39... Ke6 {[%clk 0:00:36]} 40. Rb6+ {[%clk 0:00:27.9]} 40...
Kf7 {[%clk 0:00:33.8]} 41. Ra6 {[%clk 0:00:28]} 41... Bd8 {[%clk 0:00:28.5]} 42.
Ra7+ {[%clk 0:00:24.4]} 42... Ke6 {[%clk 0:00:26.8]} 43. Ra8 {[%clk 0:00:22.8]}
43... Be7 {[%clk 0:00:25.6]} 44. Ra6+ {[%clk 0:00:22.6]} 44... Kf7 {[%clk
0:00:24.8]} 45. a3 {[%clk 0:00:22.8]} 45... bxa3 {[%clk 0:00:23.3]} 46. bxa3
{[%clk 0:00:23.7]} 46... Ra2 {[%clk 0:00:23.2]} 47. a4 {[%clk 0:00:24.1]} 47...
Ke8 {[%clk 0:00:18.1]} 48. Ra8+ {[%clk 0:00:23.5]} 48... Kf7 {[%clk 0:00:17.7]}
49. Ra7 {[%clk 0:00:23.7]} 49... Ke6 {[%clk 0:00:17.5]} 50. a5 {[%clk
0:00:23.3]} 50... Bb4 {[%clk 0:00:14.5]} 51. Ra6+ {[%clk 0:00:18.8]} 51... Kd5
{[%clk 0:00:10.2]} 52. Rxf6 {[%clk 0:00:18.4]} 52... Bxa5 {[%clk 0:00:09.4]} 53.
Rf5+ {[%clk 0:00:18.5]} 53... Ke6 {[%clk 0:00:08.2]} 54. Rxg5 {[%clk 0:00:17.6]}
54... Bd8 {[%clk 0:00:08.1]} 55. Rf5 {[%clk 0:00:17.4]} 55... Ke7 {[%clk
0:00:06.7]} 56. Bf6+ {[%clk 0:00:16.7]} 56... Ke8 {[%clk 0:00:05.5]} 57. Bxd8
{[%clk 0:00:17.6]} 57... Kxd8 {[%clk 0:00:06.2]} 58. Kg3 {[%clk 0:00:17.6]}
58... Ke7 {[%clk 0:00:06.5]} 59. f4 {[%clk 0:00:16.7]} 59... Ra1 {[%clk
0:00:05.1]} 60. Kf3 {[%clk 0:00:16.5]} 60... Rf1+ {[%clk 0:00:04.4]} 61. Ke4
{[%clk 0:00:16.5]} 61... Ra1 {[%clk 0:00:05.3]} 62. Rd5 {[%clk 0:00:16.2]} 62...
Ra4+ {[%clk 0:00:05.8]} 63. Rd4 {[%clk 0:00:16.2]} 63... Ra1 {[%clk 0:00:05.9]}
64. g5 {[%clk 0:00:16.6]} 1-0

[Event "*** Titled Tuesday Blitz"]
[Site "Chess.com"]
[Date "2020.12.01"]
[Round "7"]
[White "anon219"]
[Black "biostatistician"]
[Result "0-1"]
[WhiteElo "2745"]
[BlackElo "2587"]
[TimeControl "180+1"]
[EndTime "11:17:39 PST"]
[Termination "biostatistician won by checkmate"]

1. e4 {[%clk 0:03:00.9]} 1... e6 {[%clk 0:02:59.2]} 2. d4 {[%clk 0:03:00]} 2...
d5 {[%clk 0:03:00.1]} 3. Nc3 {[%clk 0:03:00.3]} 3... Nc6 {[%clk 0:03:00.5]} 4.
Nf3 {[%clk 0:02:56.9]} 4... Nf6 {[%clk 0:03:00.3]} 5. e5 {[%clk 0:02:57.3]} 5...
Ne4 {[%clk 0:03:00.5]} 6. Bd3 {[%clk 0:02:56.6]} 6... Bb4 {[%clk 0:03:00.2]} 7.
Bd2 {[%clk 0:02:57]} 7... Nxd2 {[%clk 0:03:00.1]} 8. Qxd2 {[%clk 0:02:57.9]}
8... Be7 {[%clk 0:03:00.8]} 9. O-O {[%clk 0:02:57]} 9... Nb4 {[%clk 0:03:01]}
10. Be2 {[%clk 0:02:50.7]} 10... c5 {[%clk 0:03:01.2]} 11. dxc5 {[%clk
0:02:50.7]} 11... Bxc5 {[%clk 0:03:02.1]} 12. Nb5 {[%clk 0:02:50.1]} 12... O-O
{[%clk 0:02:58.6]} 13. c3 {[%clk 0:02:50]} 13... Nc6 {[%clk 0:02:58.6]} 14. Bd3
{[%clk 0:02:50.5]} 14... Bd7 {[%clk 0:02:57]} 15. h4 {[%clk 0:02:45.4]} 15...
Rc8 {[%clk 0:02:49.9]} 16. Qf4 {[%clk 0:02:38.2]} 16... f6 {[%clk 0:02:43.7]}
17. exf6 {[%clk 0:02:10.4]} 17... Qxf6 {[%clk 0:02:44.6]} 18. Qg3 {[%clk
0:02:05.4]} 18... e5 {[%clk 0:02:35.7]} 19. Be2 {[%clk 0:01:32.2]} 19... a6
{[%clk 0:02:29.2]} 20. Na3 {[%clk 0:01:26.1]} 20... e4 {[%clk 0:02:29.2]} 21.
Ng5 {[%clk 0:01:08.6]} 21... Bd6 {[%clk 0:02:19.5]} 22. f4 {[%clk 0:01:07.2]}
22... exf3 {[%clk 0:02:07]} 23. Qxf3 {[%clk 0:01:06.3]} 23... Qe5 {[%clk
0:02:07.1]} 24. Qxd5+ {[%clk 0:00:38.4]} 24... Qxd5 {[%clk 0:02:03.9]} 25. Bc4
{[%clk 0:00:39]} 25... Bc5+ {[%clk 0:01:51.3]} 26. Kh1 {[%clk 0:00:35.7]} 26...
Qxc4 {[%clk 0:01:51.7]} 27. Nxc4 {[%clk 0:00:35.4]} 27... b5 {[%clk 0:01:35.6]}
28. Nd2 {[%clk 0:00:27.8]} 28... Be3 {[%clk 0:01:35.3]} 29. Nde4 {[%clk
0:00:26.5]} 29... h6 {[%clk 0:01:31.8]} 30. Nf3 {[%clk 0:00:26]} 30... Bg4
{[%clk 0:01:28.8]} 31. Rae1 {[%clk 0:00:25.3]} 31... Bxf3 {[%clk 0:01:29.1]} 32.
gxf3 {[%clk 0:00:24.4]} 32... Bf4 {[%clk 0:01:27.4]} 33. Nc5 {[%clk 0:00:21.2]}
33... a5 {[%clk 0:01:26.8]} 34. Ne6 {[%clk 0:00:20.5]} 34... Rf6 {[%clk
0:01:25.7]} 35. Re4 {[%clk 0:00:20.6]} 35... Bb8 {[%clk 0:01:15.9]} 36. Rg1
{[%clk 0:00:20.3]} 36... g6 {[%clk 0:01:12.5]} 37. h5 {[%clk 0:00:18.1]} 37...
g5 {[%clk 0:01:11.7]} 38. f4 {[%clk 0:00:18.1]} 38... Re8 {[%clk 0:01:11.4]} 39.
Rge1 {[%clk 0:00:15.9]} 39... gxf4 {[%clk 0:01:10.2]} 40. Rg1+ {[%clk
0:00:15.2]} 40... Kh8 {[%clk 0:01:10.1]} 41. Rg6 {[%clk 0:00:13.3]} 41... Rxg6
{[%clk 0:01:08.2]} 42. hxg6 {[%clk 0:00:14.2]} 42... Kg8 {[%clk 0:01:04.3]} 43.
Kg2 {[%clk 0:00:12.2]} 43... Nd8 {[%clk 0:01:03]} 44. Nc5 {[%clk 0:00:09.6]}
44... Rxe4 {[%clk 0:01:03.2]} 45. Nxe4 {[%clk 0:00:10.5]} 45... Kg7 {[%clk
0:01:03.9]} 46. c4 {[%clk 0:00:11]} 46... bxc4 {[%clk 0:01:03.8]} 47. Nd2 {[%clk
0:00:11.3]} 47... Kxg6 {[%clk 0:01:01.7]} 48. Nxc4 {[%clk 0:00:11.7]} 48... Nc6
{[%clk 0:01:02.4]} 49. a3 {[%clk 0:00:10.8]} 49... Kf5 {[%clk 0:01:01.1]} 50. b4
{[%clk 0:00:10.9]} 50... axb4 {[%clk 0:01:01.7]} 51. axb4 {[%clk 0:00:11.8]}
51... Nxb4 {[%clk 0:01:02.3]} 52. Kf3 {[%clk 0:00:12.7]} 52... Bc7 {[%clk
0:01:01.4]} 53. Nd2 {[%clk 0:00:12.8]} 53... Nd3 {[%clk 0:01:01.1]} 54. Kg2
{[%clk 0:00:12.9]} 54... Ne5 {[%clk 0:01:01.2]} 55. Kf2 {[%clk 0:00:13.2]} 55...
h5 {[%clk 0:01:00.6]} 56. Kg2 {[%clk 0:00:13.8]} 56... Bb6 {[%clk 0:00:59.6]}
57. Nf1 {[%clk 0:00:13.9]} 57... Be3 {[%clk 0:00:57.3]} 58. Kh3 {[%clk
0:00:13.2]} 58... Kg5 {[%clk 0:00:55.3]} 59. Nh2 {[%clk 0:00:12.4]} 59... Bg1
{[%clk 0:00:52.6]} 60. Nf1 {[%clk 0:00:12.3]} 60... Ng4 {[%clk 0:00:50]} 61. Kg2
{[%clk 0:00:11.8]} 61... Be3 {[%clk 0:00:48.9]} 62. Kh3 {[%clk 0:00:10.4]} 62...
h4 {[%clk 0:00:44.7]} 63. Kg2 {[%clk 0:00:10.5]} 63... Kh5 {[%clk 0:00:41.3]}
64. Kf3 {[%clk 0:00:10.2]} 64... Ne5+ {[%clk 0:00:38.9]} 65. Kg2 {[%clk
0:00:09.3]} 65... Kg4 {[%clk 0:00:38.2]} 66. Nh2+ {[%clk 0:00:09.5]} 66... Kf5
{[%clk 0:00:37.7]} 67. Nf1 {[%clk 0:00:10.4]} 67... Ng6 {[%clk 0:00:37.4]} 68.
Kf3 {[%clk 0:00:09.8]} 68... h3 {[%clk 0:00:35.3]} 69. Nh2 {[%clk 0:00:08.9]}
69... Nh4+ {[%clk 0:00:35.3]} 70. Ke2 {[%clk 0:00:09.4]} 70... Ke4 {[%clk
0:00:35.8]} 71. Nf1 {[%clk 0:00:09.2]} 71... f3+ {[%clk 0:00:35.9]} 72. Ke1
{[%clk 0:00:09.6]} 72... Ng2+ {[%clk 0:00:34.7]} 73. Kd1 {[%clk 0:00:09.8]}
73... Bf4 {[%clk 0:00:35.2]} 74. Kc2 {[%clk 0:00:10.3]} 74... h2 {[%clk
0:00:35.4]} 75. Nxh2 {[%clk 0:00:10.8]} 75... Bxh2 {[%clk 0:00:36.3]} 76. Kb3
{[%clk 0:00:11.7]} 76... f2 {[%clk 0:00:36.5]} 77. Kc4 {[%clk 0:00:12.6]} 77...
f1=Q+ {[%clk 0:00:37]} 78. Kc5 {[%clk 0:00:12.6]} 78... Qc1+ {[%clk 0:00:37.2]}
79. Kb6 {[%clk 0:00:12.4]} 79... Kd5 {[%clk 0:00:37.3]} 80. Kb7 {[%clk
0:00:13.3]} 80... Qc7+ {[%clk 0:00:37.4]} 81. Ka8 {[%clk 0:00:13.7]} 81... Qb8#
{[%clk 0:00:37.2]} 0-1

[Event "*** Titled Tuesday Blitz"]
[Site "Chess.com"]
[Date "2020.12.01"]
[Round "7"]
[White "youngKID"]
[Black "PaulfromSPb"]
[Result "0-1"]
[WhiteElo "2845"]
[BlackElo "2700"]
[TimeControl "180+1"]
[EndTime "11:17:41 PST"]
[Termination "PaulfromSPb won by resignation"]

1. e4 {[%clk 0:03:00.9]} 1... c5 {[%clk 0:02:57.2]} 2. Nf3 {[%clk 0:03:00.6]}
2... d6 {[%clk 0:02:57]} 3. d4 {[%clk 0:03:00.7]} 3... cxd4 {[%clk 0:02:57.9]}
4. Nxd4 {[%clk 0:03:01.5]} 4... Nf6 {[%clk 0:02:58.3]} 5. Nc3 {[%clk 0:03:02.2]}
5... a6 {[%clk 0:02:58.9]} 6. Be2 {[%clk 0:03:02.4]} 6... g6 {[%clk 0:02:56.8]}
7. Be3 {[%clk 0:03:02]} 7... Bg7 {[%clk 0:02:55.8]} 8. Qd2 {[%clk 0:03:02.3]}
8... h5 {[%clk 0:02:53.6]} 9. O-O-O {[%clk 0:03:00]} 9... b5 {[%clk 0:02:51.1]}
10. f3 {[%clk 0:02:53]} 10... Bb7 {[%clk 0:02:42.1]} 11. Kb1 {[%clk 0:02:50.1]}
11... Nbd7 {[%clk 0:02:33.4]} 12. a3 {[%clk 0:02:44.9]} 12... Rc8 {[%clk
0:02:32.6]} 13. g3 {[%clk 0:02:39.2]} 13... Qc7 {[%clk 0:02:25.2]} 14. h3 {[%clk
0:02:34.9]} 14... Nb6 {[%clk 0:02:13.3]} 15. g4 {[%clk 0:02:33.8]} 15... Nfd7
{[%clk 0:02:08.5]} 16. Rhg1 {[%clk 0:02:18.2]} 16... hxg4 {[%clk 0:02:05.8]} 17.
hxg4 {[%clk 0:02:18]} 17... Ne5 {[%clk 0:02:03.1]} 18. Rh1 {[%clk 0:01:50.4]}
18... Rg8 {[%clk 0:01:58.6]} 19. Bh6 {[%clk 0:01:16.9]} 19... Nec4 {[%clk
0:01:53.7]} 20. Qc1 {[%clk 0:01:15.7]} 20... Bxh6 {[%clk 0:01:33.7]} 21. Rxh6
{[%clk 0:01:16.6]} 21... Nxa3+ {[%clk 0:01:32.1]} 22. bxa3 {[%clk 0:01:04.1]}
22... Qxc3 {[%clk 0:01:31.8]} 23. Rd3 {[%clk 0:01:04.7]} 23... Qc5 {[%clk
0:01:25.8]} 24. Rh7 {[%clk 0:00:42.4]} 24... Nc4 {[%clk 0:01:13.6]} 25. Bf1
{[%clk 0:00:17.7]} 25... b4 {[%clk 0:00:56.2]} 26. axb4 {[%clk 0:00:13.8]} 26...
Qxb4+ {[%clk 0:00:56.3]} 27. Ka2 {[%clk 0:00:09.7]} 27... Qa5+ {[%clk
0:00:48.8]} 28. Kb1 {[%clk 0:00:09.6]} 28... Rb8 {[%clk 0:00:47.7]} 29. Nb3
{[%clk 0:00:09]} 29... Qe5 {[%clk 0:00:42.4]} 30. Rd4 {[%clk 0:00:07.2]} 30...
Na5 {[%clk 0:00:33]} 31. Rb4 {[%clk 0:00:06.5]} 31... Qc3 {[%clk 0:00:27.2]} 32.
Qd2 {[%clk 0:00:03.5]} 32... Qc7 {[%clk 0:00:20.7]} 33. Nd4 {[%clk 0:00:01.9]}
33... Nc6 {[%clk 0:00:19.4]} 34. Nxc6 {[%clk 0:00:02.2]} 34... Bxc6 {[%clk
0:00:20.3]} 35. Rb3 {[%clk 0:00:01.3]} 35... Ba4 {[%clk 0:00:16.8]} 36. Rxb8+
{[%clk 0:00:01.5]} 36... Qxb8+ {[%clk 0:00:17.7]} 37. Kc1 {[%clk 0:00:02.4]}
37... Qb6 {[%clk 0:00:17]} 38. Qc3 {[%clk 0:00:02.7]} 38... Bc6 {[%clk
0:00:15.6]} 39. Bc4 {[%clk 0:00:02.6]} 39... e6 {[%clk 0:00:14.5]} 40. Bb3
{[%clk 0:00:02.6]} 40... Ke7 {[%clk 0:00:13.3]} 41. Kb2 {[%clk 0:00:02.9]} 41...
Rf8 {[%clk 0:00:12.5]} 42. g5 {[%clk 0:00:03.4]} 42... Ba4 {[%clk 0:00:11.3]}
43. Qf6+ {[%clk 0:00:03.4]} 43... Ke8 {[%clk 0:00:11.6]} 44. Qc3 {[%clk
0:00:01.5]} 44... Bxb3 {[%clk 0:00:11.3]} 45. cxb3 {[%clk 0:00:02]} 45... Qc5
{[%clk 0:00:09.5]} 46. Qxc5 {[%clk 0:00:01.4]} 46... dxc5 {[%clk 0:00:10.4]} 47.
Kc3 {[%clk 0:00:01.7]} 47... Ke7 {[%clk 0:00:10.7]} 48. Rh2 {[%clk 0:00:02.1]}
48... Rd8 {[%clk 0:00:09.8]} 49. Ra2 {[%clk 0:00:02.6]} 49... Rd6 {[%clk
0:00:09.6]} 50. Kc4 {[%clk 0:00:03.1]} 50... Rb6 {[%clk 0:00:09.7]} 51. Ra3
{[%clk 0:00:03.3]} 51... Kd6 {[%clk 0:00:09.5]} 52. Ra4 {[%clk 0:00:03.8]} 52...
Kc6 {[%clk 0:00:09.5]} 53. f4 {[%clk 0:00:03.9]} 53... Kd6 {[%clk 0:00:08.6]}
54. Ra5 {[%clk 0:00:02.3]} 54... Rb4+ {[%clk 0:00:08.3]} 55. Kd3 {[%clk
0:00:02.8]} 55... Rxb3+ {[%clk 0:00:08.7]} 56. Kc4 {[%clk 0:00:03.3]} 56... Rb4+
{[%clk 0:00:08.6]} 57. Kd3 {[%clk 0:00:03.8]} 57... Rb6 {[%clk 0:00:08.1]} 58.
Kc4 {[%clk 0:00:04.1]} 58... Rc6 {[%clk 0:00:08.5]} 59. e5+ {[%clk 0:00:03.3]}
59... Kc7 {[%clk 0:00:08.6]} 60. Ra2 {[%clk 0:00:03.5]} 60... Kb7 {[%clk
0:00:07.4]} 61. Rb2+ {[%clk 0:00:03.3]} 61... Rb6 {[%clk 0:00:07.4]} 62. Rd2
{[%clk 0:00:03.3]} 62... Kc6 {[%clk 0:00:07.7]} 63. Rd6+ {[%clk 0:00:03.1]}
63... Kc7 {[%clk 0:00:07.9]} 64. Rd2 {[%clk 0:00:01.9]} 64... Rb4+ {[%clk
0:00:08.2]} 65. Kxc5 {[%clk 0:00:02.5]} 65... Rxf4 {[%clk 0:00:08.3]} 66. Rh2
{[%clk 0:00:02.8]} 66... Rf5 {[%clk 0:00:08.4]} 67. Kd4 {[%clk 0:00:03.4]} 0-1